fUSD/lending_fUSD_20251227
["ID","MTS","AMOUNT","RATE_DAILY","PERIOD"]
[399882938,1766805040381,-1252.0,0.00018083,2]
[399882940,1766805040390,-150.098,0.00018123,2]
[399882942,1766805040400,-150.114,0.00018123,2]
[399882944,1766805040411,-150.0,0.00018123,2]
[399882946,1766805040420,-150.065,0.00018123,2]
[399882947,1766805040430,-150.0,0.00018123,2]
[399882949,1766805040439,-150.0,0.00018123,2]
[399882951,1766805040448,-150.0,0.00018123,2]
[399882953,1766805040458,-150.0,0.00018123,2]
[399882955,1766805040467,-150.112,0.00018123,2]
[399882957,1766805040477,-161.233,0.00018123,2]
[399882959,1766805040486,-1327.0,0.00018123,2]
[399882961,1766805040497,-3460.0,0.00018123,2]
[399882963,1766805040507,-1610.0,0.00018123,2]
[399882965,1766805040518,-615.624,0.00018123,2]
[399882966,1766805040527,-1270.139,0.00018123,2]
[399882967,1766805040537,-524.802,0.00018123,2]
[399882968,1766805040547,-2001.72362349,0.00018164,2]
[399882969,1766805040557,-2001.85560352,0.00018164,2]
[399882970,1766805040566,-1882.33504396,0.00018164,2]
[399882971,1766805040575,-505.48427764,0.00018164,2]
[399882972,1766805040585,-2001.39022601,0.00018164,2]
[399882973,1766805040594,-1947.89649868,0.00018164,2]
[399882974,1766805040604,-998.31513644,0.00018164,2]
[399882975,1766805040614,-2002.8859502,0.00018164,2]
[399882976,1766805040623,-970.38817896,0.00018164,2]
[399882977,1766805040632,-170.49,0.00018192,2]
[399882978,1766805040641,-8786.5,0.00018489,2]
[399882979,1766805040651,-215.0738,0.00018526,2]
[399882980,1766805040660,-200.0,0.00018528,2]
[399882981,1766805040671,-1512.55936455,0.00018721,2]
[399882982,1766805040680,-1152.0,0.00018751,2]
[399882984,1766805040690,-1000.0,0.0001876,2]
[399882986,1766805040701,-151.18,0.000188,2]
[399882987,1766805040711,-556.75,0.00018899,2]
[399882989,1766805040720,-4609.0,0.00018967,2]
[399882990,1766805040730,-5057.9062819,0.0001897,2]
[399882991,1766805040743,-29710.09430107,0.00019,2]
[399882992,1766805040752,-374.82925111,0.00019,2]
[399882993,1766805040761,-300.0,0.00019,2]
[399882994,1766805040772,-201.14203107,0.00019076,2]
[399882995,1766805040783,-556.75,0.00019173,2]
[399882996,1766805040792,-2089.36519499,0.00019178,2]
[399882997,1766805040803,-151.0,0.00019178,2]
[399882998,1766805040812,-151.0,0.00019178,2]
[399882999,1766805040822,-151.0,0.00019178,2]
[399883000,1766805040831,-151.0,0.00019178,2]
[399883001,1766805040841,-151.0,0.00019178,2]
[399883002,1766805040850,-151.0,0.00019178,2]
[399883003,1766805040860,-151.0,0.00019178,2]
[399883004,1766805040869,-151.0,0.00019178,2]
[399883005,1766805040879,-151.0,0.00019178,2]
[399883006,1766805040889,-151.0,0.00019178,2]
[399883007,1766805040899,-151.000012,0.00019178,2]
[399883008,1766805040908,-155.435741,0.00019178,2]
[399883009,1766805040918,-416.446226,0.00019178,2]
[399883010,1766805040928,-416.446226,0.00019178,2]
[399883011,1766805040938,-416.446226,0.00019178,2]
[399883012,1766805040948,-416.446226,0.00019178,2]
[399883013,1766805040957,-416.446226,0.00019178,2]
[399883014,1766805041155,-416.446226,0.00019178,2]
[399883015,1766805041166,-416.446226,0.00019178,2]
[399883016,1766805041176,-416.446226,0.00019178,2]
[399883017,1766805041186,-416.446226,0.00019178,2]
[399883018,1766805041196,-416.446226,0.00019178,2]
[399883019,1766805041207,-416.446226,0.00019178,2]
[399883020,1766805041217,-416.446226,0.00019178,2]
[399883021,1766805041227,-416.446226,0.00019178,2]
[399883022,1766805041238,-416.446226,0.00019178,2]
[399883023,1766805041247,-416.446226,0.00019178,2]
[399883024,1766805041258,-416.446226,0.00019178,2]
[399883025,1766805041268,-416.446226,0.00019178,2]
[399883026,1766805041280,-416.446226,0.00019178,2]
[399883027,1766805041291,-416.446226,0.00019178,2]
[399883028,1766805041301,-416.446216,0.00019178,2]
[399883029,1766805041312,-150.38701344,0.00019178,2]
[399883030,1766805041322,-1000.0,0.00019319,2]
[399883031,1766805041332,-1000.0,0.00019438,2]
[399883032,1766805041343,-556.75,0.00019447,2]
[399883033,1766805041352,-169.46214065,0.00019612,2]
[399883034,1766805041362,-2129.0,0.00019623,2]
[399883035,1766805041372,-556.75,0.00019721,2]
[399883036,1766805041382,-150.50594987,0.00019726,2]
[399883037,1766805041392,-232.1,0.00019995,2]
[399883038,1766805041402,-173.69,0.0002,2]
[399883039,1766805041412,-794.436222,0.0002,2]
[399883040,1766805041422,-328.0,0.00020103,2]
[399883041,1766805041433,-174.75,0.00020113,2]
[399883042,1766805041443,-1000.0,0.00020116,2]
[399883043,1766805041453,-328.0,0.00020128,2]
[399883044,1766805041463,-362.47,0.00020187,2]
[399883045,1766805041473,-328.0,0.00020243,2]
[399883046,1766805041483,-328.0,0.0002029,2]
[399883047,1766805041492,-432.09,0.00020345,2]
[399883048,1766805041503,-171.40540158,0.00020369,2]
[399883049,1766805041512,-328.0,0.00020415,2]
[399883050,1766805041522,-151.55467164,0.00020443,2]
[399883051,1766805041532,-170.49,0.00020466,2]
[399883052,1766805041542,-8786.5,0.0002054,2]
[399883053,1766805041552,-1613.0,0.00020565,2]
[399883054,1766805041562,-328.0,0.0002061,2]
[399883055,1766805041572,-432.09,0.00020619,2]
[399883056,1766805041582,-2000.0,0.000207,2]
[399883057,1766805041591,-2000.0,0.000207,2]
[399883058,1766805041601,-328.0,0.00020743,2]
[399883059,1766805041611,-1000.0,0.00020795,2]
[399883060,1766805041621,-328.0,0.00020841,2]
[399883061,1766805041631,-6453.0,0.00020864,2]
[399883062,1766805041641,-432.09,0.00020893,2]
[399883063,1766805041650,-328.0,0.0002093,2]
[399883064,1766805041661,-6537.0,0.00020976,2]
[399883065,1766805041671,-2431.0,0.00020976,2]
[399883066,1766805041680,-564.0,0.00020976,2]
[399883067,1766805041690,-328.0,0.00021016,2]
[399883068,1766805041700,-328.0,0.00021069,2]
[399883069,1766805041710,-1000.0,0.00021075,2]
[399883070,1766805041719,-328.0,0.00021114,2]
[399883071,1766805041728,-150.0,0.00021123,2]
[399883072,1766805041739,-150.0,0.00021123,2]
[399883073,1766805041749,-150.0,0.00021123,2]
[399883074,1766805041758,-1327.0,0.00021123,2]
[399883075,1766805041768,-3460.0,0.00021123,2]
[399883076,1766805041777,-1610.0,0.00021123,2]
[399883077,1766805041787,-613.0,0.00021123,2]
[399883078,1766805041796,-1263.0,0.00021123,2]
[399883079,1766805041806,-432.0,0.00021123,2]
[399883080,1766805041815,-432.12,0.00021167,2]
[399883081,1766805041824,-303.590316,0.00021258,2]
[399883082,1766805041835,-223.0315306,0.00021265,2]
[399883083,1766805041845,-328.0,0.00021278,2]
[399883084,1766805041855,-3620.0,0.0002128,2]
[399883085,1766805041866,-328.0,0.0002136,2]
[399883086,1766805041876,-328.0,0.00021574,2]
[399883087,1766805041886,-328.0,0.0002159,2]
[399883088,1766805041896,-1512.55936455,0.00021604,2]
[399883089,1766805041906,-328.0,0.0002162,2]
[399883090,1766805041916,-328.0,0.00021643,2]
[399883091,1766805041926,-328.0,0.00021731,2]
[399883092,1766805041936,-328.0,0.00021745,2]
[399883093,1766805041946,-328.0,0.00021805,2]
[399883094,1766805041955,-328.0,0.00021806,2]
[399883095,1766805041964,-328.0,0.00021872,2]
[399883096,1766805041974,-151.55467164,0.00021903,2]
[399883097,1766805041985,-362.49,0.00021918,30]
[399883098,1766805041994,-5000.0,0.00021918,2]
[399883099,1766805042004,-151.0,0.00021918,2]
[399883100,1766805042013,-151.0,0.00021918,2]
[399883101,1766805042023,-151.0,0.00021918,2]
[399883102,1766805042032,-151.0,0.00021918,2]
[399883103,1766805042043,-151.0,0.00021918,2]
[399883104,1766805042053,-159.118052,0.00021918,2]
[399883105,1766805042063,-500.0,0.00021918,2]
[399883106,1766805042072,-332.17965409,0.00021918,2]
[399883107,1766805042082,-178.17707989,0.00021959,2]
[399883108,1766805042091,-328.0,0.00021964,2]
[399883109,1766805042102,-156.26,0.00022,7]
[399883110,1766805042112,-15671.56,0.00022,7]
[399883111,1766805042122,-328.0,0.00022067,2]
[399883112,1766805042146,-1106.0,0.00022553,2]
[399883113,1766805042156,-8786.5,0.00022591,2]
[399883114,1766805042166,-322.6107,0.00022889,2]
[399883115,1766805042176,-250.0,0.00022889,2]
[399883116,1766805042186,-209.40437684,0.00022889,2]
[399883117,1766805042196,-500.0,0.00022889,2]
[399883118,1766805042206,-250.0,0.00022889,2]
[399883120,1766805042217,-500.0,0.00022889,2]
[399883122,1766805042227,-250.0,0.00022889,2]
[399883123,1766805042236,-500.0,0.00022889,2]
[399883124,1766805042246,-250.0,0.00022889,2]
[399883125,1766805042256,-500.0,0.00022889,2]
[399883126,1766805042267,-250.0,0.00022889,2]
[399883127,1766805042277,-500.0,0.00022889,2]
[399883128,1766805042287,-204.21039293,0.00022889,2]
[399883129,1766805042297,-500.0,0.00022889,2]
[399883130,1766805042307,-500.0,0.00022889,2]
[399883131,1766805042319,-500.0,0.00022889,2]
[399883132,1766805042329,-500.0,0.00022889,2]
[399883133,1766805042339,-500.0,0.00022889,2]
[399883134,1766805042350,-500.0,0.00022889,2]
[399883135,1766805042361,-500.0,0.00022889,2]
[399883136,1766805042371,-500.0,0.00022889,2]
[399883137,1766805042382,-574.12855637,0.00022889,2]
[399883138,1766805042392,-500.0,0.00022889,2]
[399883139,1766805042402,-500.0,0.00022889,2]
[399883140,1766805042413,-630.96912444,0.00022889,2]
[399883141,1766805042423,-578.20924308,0.00022889,2]
[399883142,1766805042434,-620.0,0.00022889,2]
[399883143,1766805042444,-500.0,0.00022889,2]
[399883144,1766805042455,-500.0,0.00022889,2]
[399883145,1766805042466,-500.0,0.00022889,2]
[399883146,1766805042476,-500.0,0.00022889,2]
[399883147,1766805042493,-500.0,0.00022889,2]
[399883148,1766805042503,-500.0,0.00022889,2]
[399883149,1766805042514,-151.0,0.00022889,2]
[399883150,1766805042525,-500.0,0.00022889,2]
[399883151,1766805042535,-500.0,0.00022889,2]
[399883152,1766805042545,-500.0,0.00022889,2]
[399883153,1766805042556,-250.0,0.00022889,2]
[399883154,1766805042566,-500.0,0.00022889,2]
[399883155,1766805042576,-250.0,0.00022889,2]
[399883156,1766805042586,-500.0,0.00022889,2]
[399883157,1766805042597,-250.0,0.00022889,2]
[399883158,1766805042607,-250.0,0.00022889,2]
[399883159,1766805042617,-500.0,0.00022889,2]
[399883160,1766805042628,-250.0,0.00022889,2]
[399883161,1766805042638,-250.0,0.00022889,2]
[399883162,1766805042648,-500.0,0.00022889,2]
[399883163,1766805042658,-250.0,0.00022889,2]
[399883164,1766805042668,-250.0,0.00022889,2]
[399883165,1766805042679,-500.0,0.00022889,2]
[399883166,1766805042689,-250.0,0.00022889,2]
[399883167,1766805042700,-500.0,0.00022889,2]
[399883168,1766805042710,-250.0,0.00022889,2]
[399883169,1766805042720,-250.0,0.00022889,2]
[399883170,1766805042731,-500.0,0.00022889,2]
[399883171,1766805042743,-250.0,0.00022889,2]
[399883172,1766805042753,-250.0,0.00022889,2]
[399883173,1766805042764,-500.0,0.00022889,2]
[399883174,1766805042774,-250.0,0.00022889,2]
[399883175,1766805042784,-250.0,0.00022889,2]
[399883176,1766805042794,-250.0,0.00022889,2]
[399883177,1766805042803,-250.0,0.00022889,2]
[399883178,1766805042814,-250.0,0.00022889,2]
[399883179,1766805042823,-250.0,0.00022889,2]
[399883180,1766805042833,-250.0,0.00022889,2]
[399883181,1766805042843,-250.0,0.00022889,2]
[399883182,1766805042858,-200.0,0.00022889,2]
[399883183,1766805042868,-250.0,0.00022889,2]
[399883184,1766805042878,-207.4,0.00022889,2]
[399883185,1766805042888,-215.0738,0.00022889,2]
[399883186,1766805042899,-223.0315306,0.00022889,2]
[399883187,1766805042908,-250.0,0.00022889,2]
[399883188,1766805042919,-231.28369723,0.00022889,2]
[399883189,1766805042929,-250.0,0.00022889,2]
[399883190,1766805042939,-239.84119403,0.00022889,2]
[399883191,1766805042949,-250.0,0.00022889,2]
[399883192,1766805042960,-248.71531821,0.00022889,2]
[399883193,1766805042971,-250.0,0.00022889,2]
[399883194,1766805042981,-257.91778498,0.00022889,2]
[399883195,1766805042992,-250.0,0.00022889,2]
[399883196,1766805043003,-267.46074303,0.00022889,2]
[399883197,1766805043013,-277.35679052,0.00022889,2]
[399883198,1766805043023,-250.0,0.00022889,2]
[399883199,1766805043033,-250.0,0.00022889,2]
[399883200,1766805043044,-250.0,0.00022889,2]
[399883201,1766805043054,-250.0,0.00022889,2]
[399883202,1766805043064,-250.0,0.00022889,2]
[399883203,1766805043074,-261.05610334,0.00022889,2]
[399883204,1766805043085,-9035.0,0.00022951,2]
[399883205,1766805043095,-173.0,0.00023,7]
[399883206,1766805043105,-1227.0,0.00023093,2]
[399883207,1766805043115,-151.55467164,0.00023363,2]
[399883208,1766805043126,-42949.0,0.000234,2]
[399883209,1766805043137,-217.15233878,0.00023437,2]
[399883210,1766805043147,-595.37131296,0.00023437,2]
[399883211,1766805043157,-151.0,0.00023437,2]
[399883212,1766805043167,-174.75,0.00023755,2]
[399883213,1766805043178,-6537.0,0.00023976,2]
[399883214,1766805043188,-2431.0,0.00023976,2]
[399883215,1766805043198,-564.0,0.00023976,2]
[399883216,1766805043208,-225.18697532,0.00023985,2]
[399883217,1766805043224,-617.40005154,0.00023985,2]
[399883218,1766805043234,-151.0,0.00023985,2]
[399883219,1766805043244,-231.28369723,0.00024004,2]
[399883220,1766805043254,-5265.12558388,0.00024011,2]
[399883221,1766805043265,-5000.0,0.00024011,2]
[399883222,1766805043276,-5000.0,0.00024011,2]
[399883223,1766805043286,-5000.0,0.00024011,2]
[399883224,1766805043297,-5000.0,0.00024011,2]
[399883225,1766805043307,-171.40540158,0.00024075,2]
[399883226,1766805043317,-1327.0,0.00024123,2]
[399883227,1766805043327,-3460.0,0.00024123,2]
[399883228,1766805043338,-1610.0,0.00024123,2]
[399883229,1766805043348,-613.0,0.00024123,2]
[399883230,1766805043359,-1263.0,0.00024123,2]
[399883231,1766805043369,-432.0,0.00024123,2]
[399883232,1766805043379,-173.0,0.00024164,7]
[399883233,1766805043389,-5526.0,0.000242,3]
[399883234,1766805043399,-334.5472959,0.00024258,2]
[399883235,1766805043410,-642.94,0.00024258,2]
[399883236,1766805043420,-287.61899177,0.00024258,2]
[399883237,1766805043430,-2000.0,0.000244,2]
[399883238,1766805043440,-2000.0,0.000244,2]
[399883239,1766805043451,-1512.55936455,0.00024487,2]
[399883240,1766805043462,-233.51889341,0.00024533,2]
[399883241,1766805043473,-640.24385345,0.00024533,2]
[399883242,1766805043484,-162.35460953,0.00024533,2]
[399883243,1766805043494,-8786.5,0.00024642,2]
[399883244,1766805043504,-1000.0,0.00024658,2]
[399883245,1766805043514,-151.0,0.00024658,2]
[399883246,1766805043525,-151.0,0.00024658,2]
[399883247,1766805043539,-151.0,0.00024658,2]
[399883248,1766805043550,-151.0,0.00024658,2]
[399883249,1766805043561,-151.0,0.00024658,2]
[399883250,1766805043571,-151.0,0.00024658,2]
[399883251,1766805043581,-151.0,0.00024658,2]
[399883252,1766805043591,-151.0,0.00024658,2]
[399883253,1766805043602,-151.0,0.00024658,2]
[399883254,1766805043616,-151.0,0.00024658,2]
[399883255,1766805043626,-193.648919,0.00024658,2]
[399883256,1766805043636,-151.0,0.00024658,2]
[399883257,1766805043647,-151.0,0.00024658,2]
[399883258,1766805043657,-151.0,0.00024658,2]
[399883259,1766805043667,-151.0,0.00024658,2]
[399883260,1766805043677,-151.0,0.00024658,2]
[399883261,1766805043687,-151.0,0.00024658,2]
[399883262,1766805043697,-151.0,0.00024658,2]
[399883263,1766805043708,-153.414654,0.00024658,2]
[399883264,1766805043718,-160.75309529,0.00024724,4]
[399883265,1766805043728,-451.84617541,0.00024724,2]
[399883266,1766805043742,-809.31550703,0.00024724,2]
[399883267,1766805043752,-192.09693079,0.00024724,2]
[399883268,1766805043762,-228.58211956,0.0002479,2]
[399883269,1766805043772,-145457.25544024,0.000248,3]
[399883270,1766805043797,-370265.02556676,0.000248,3]
[399883271,1766805043808,-151.55467164,0.00024824,2]
[399883272,1766805043819,-5487.96275136,0.000249,3]
[399883273,1766805043831,-5526.0,0.000249,5]
[399883274,1766805043842,-15671.56,0.00025,7]
[399883275,1766805043852,-150.0,0.00025,2]
[399883276,1766805043862,-150.0,0.00025,2]
[399883277,1766805043872,-150.0,0.00025,2]
[399883278,1766805043882,-150.0,0.00025,2]
[399883279,1766805043892,-150.0,0.00025,2]
[399883280,1766805043902,-150.0,0.00025,2]
[399883281,1766805043913,-289.486,0.00025,2]
[399883282,1766805043923,-930.0,0.00025,3]
[399883283,1766805043934,-242.15909246,0.00025081,2]
[399883284,1766805043944,-663.93287602,0.00025081,2]
[399883285,1766805043955,-12649.0,0.00025246,2]
[399883286,1766805043964,-173.0,0.00025373,7]
[399883287,1766805043975,-346.92554585,0.00025627,2]
[399883288,1766805043988,-666.72878,0.00025627,2]
[399883289,1766805043998,-298.26089446,0.00025627,2]
[399883290,1766805044008,-599.60298507,0.00025628,2]
[399883291,1766805044019,-251.11897888,0.00025629,2]
[399883292,1766805044028,-688.49839244,0.00025629,2]
[399883293,1766805044039,-169.46214065,0.00026042,2]
[399883294,1766805044049,-260.4103811,0.00026177,2]
[399883295,1766805044060,-713.97283296,0.00026177,2]
[399883296,1766805044071,-362.49,0.00026244,30]
[399883297,1766805044080,-151.55467164,0.00026284,2]
[399883298,1766805044090,-362.47,0.00026676,2]
[399883299,1766805044101,-8786.5,0.00026693,2]
[399883300,1766805044111,-270.0455652,0.00026725,2]
[399883301,1766805044122,-740.38982778,0.00026725,2]
[399883302,1766805044132,-239.84119403,0.00026743,2]
[399883303,1766805044142,-6537.0,0.00026976,2]
[399883304,1766805044153,-2195.447,0.00026976,2]
[399883305,1766805044163,-564.0,0.00026976,2]
[399883306,1766805044173,-359.76179104,0.00026996,2]
[399883307,1766805044184,-691.39774486,0.00026996,2]
[399883308,1766805044194,-309.29654756,0.00026996,2]
[399883309,1766805044204,-3456.0,0.00027123,2]
[399883310,1766805044214,-1327.0,0.00027123,2]
[399883311,1766805044224,-613.0,0.00027123,2]
[399883312,1766805044234,-1610.0,0.00027123,2]
[399883313,1766805044244,-1263.0,0.00027123,2]
[399883314,1766805044255,-432.0,0.00027123,2]
[399883315,1766805044266,-3668.32,0.00027123,2]
[399883316,1766805044276,-280.03725112,0.00027273,2]
[399883317,1766805044286,-767.7842514,0.00027273,2]
[399883318,1766805044296,-150.0,0.00027369,2]
[399883319,1766805044306,-1512.55936455,0.00027369,2]
[399883320,1766805044317,-500.0,0.00027397,14]
[399883321,1766805044331,-500.0,0.00027397,14]
[399883322,1766805044341,-500.0,0.00027397,14]
[399883323,1766805044351,-500.0,0.00027397,14]
[399883324,1766805044361,-500.0,0.00027397,14]
[399883325,1766805044377,-500.0,0.00027397,14]
[399883326,1766805044399,-500.0,0.00027397,14]
[399883327,1766805044413,-500.0,0.00027397,14]
[399883328,1766805044422,-500.0,0.00027397,14]
[399883329,1766805044432,-500.0,0.00027397,14]
[399883330,1766805044442,-500.0,0.00027397,14]
[399883331,1766805044453,-270.9642769,0.00027397,14]
[399883332,1766805044463,-151.0,0.00027397,2]
[399883333,1766805044474,-500.0,0.00027397,20]
[399883334,1766805044484,-300.0,0.00027397,2]
[399883335,1766805044494,-7031.04,0.00027671,2]
[399883336,1766805044504,-151.55467164,0.00027744,2]
[399883337,1766805044514,-6486.0,0.0002777,2]
[399883338,1766805044524,-171.40540158,0.00027781,2]
[399883339,1766805044534,-322.33088337,0.00027821,2]
[399883340,1766805044545,-796.19226871,0.00027821,2]
[399883341,1766805044555,-2000.0,0.000281,2]
[399883342,1766805044565,-2000.0,0.000281,2]
[399883343,1766805044575,-174.75,0.00028365,2]
[399883344,1766805044586,-373.07297731,0.00028365,2]
[399883345,1766805044597,-716.97946142,0.00028365,2]
[399883346,1766805044607,-320.74051982,0.00028365,2]
[399883347,1766805044618,-621.78829552,0.00028367,2]
[399883348,1766805044628,-851.4626536,0.00028369,2]
[399883349,1766805044638,-8786.5,0.00028745,2]
[399883350,1766805044648,-151.0,0.00028766,2]
[399883351,1766805044658,-15671.56,0.000288,7]
[399883352,1766805044668,-156.26,0.000292,7]
[399883353,1766805044678,-151.55467164,0.00029204,2]
[399883354,1766805044688,-174.75,0.00029332,2]
[399883355,1766805044698,-165.93891531,0.00029482,2]
[399883356,1766805044708,-386.87667747,0.00029734,2]
[399883357,1766805044719,-637.70514189,0.00029734,2]
[399883358,1766805044728,-332.60791905,0.00029734,2]
[399883360,1766805044754,-6537.0,0.00029976,2]
[399883361,1766805044765,-319.707,0.00029976,2]
[399883362,1766805044775,-151.0,0.00030135,2]
[399883363,1766805044785,-1000.0,0.00030136,2]
[399883364,1766805044794,-1000.0,0.00030136,2]
[399883365,1766805044804,-1000.0,0.00030136,2]
[399883366,1766805044814,-1000.0,0.00030136,2]
[399883367,1766805044824,-403.95,0.00030136,2]
[399883368,1766805044834,-403.95,0.00030136,2]
[399883369,1766805044845,-403.95,0.00030136,2]
[399883370,1766805044855,-403.95,0.00030136,2]
[399883371,1766805044865,-403.95,0.00030136,2]
[399883372,1766805044875,-403.95,0.00030136,2]
[399883373,1766805044885,-403.95,0.00030136,2]
[399883374,1766805044895,-403.95,0.00030136,2]
[399883375,1766805044906,-403.95,0.00030136,2]
[399883376,1766805044916,-403.95,0.00030136,2]
[399883377,1766805044926,-403.95,0.00030136,2]
[399883378,1766805044935,-403.95,0.00030136,2]
[399883379,1766805044945,-403.95,0.00030136,2]
[399883380,1766805044956,-403.95,0.00030136,2]
[399883381,1766805044966,-403.95,0.00030136,2]
[399883382,1766805044975,-500.0,0.00030136,14]
[399883383,1766805044985,-345.59260689,0.00030136,14]
[399883384,1766805044995,-500.0,0.00030136,2]
[399883385,1766805045005,-500.0,0.00030136,2]
[399883386,1766805045015,-500.0,0.00030136,2]
[399883387,1766805045025,-500.0,0.00030136,2]
[399883388,1766805045035,-500.0,0.00030136,2]
[399883389,1766805045044,-500.0,0.00030136,2]
[399883390,1766805045054,-500.0,0.00030136,2]
[399883391,1766805045064,-500.0,0.00030136,2]
[399883392,1766805045075,-500.0,0.00030136,2]
[399883393,1766805045086,-500.0,0.00030136,2]
[399883394,1766805045096,-500.0,0.00030136,2]
[399883395,1766805045110,-500.0,0.00030136,2]
[399883396,1766805045120,-353.32284018,0.00030136,2]
[399883397,1766805045130,-1298.76,0.00030136,2]
[399883398,1766805045140,-1298.76,0.00030136,2]
[399883399,1766805045150,-1298.76,0.00030136,2]
[399883400,1766805045160,-1298.76,0.00030136,2]
[399883401,1766805045170,-1298.76,0.00030136,2]
[399883402,1766805045179,-1298.76,0.00030136,2]
[399883403,1766805045189,-1298.76,0.00030136,2]
[399883404,1766805045199,-1298.76,0.00030136,2]
[399883405,1766805045209,-1298.76,0.00030136,2]
[399883406,1766805045219,-1298.76,0.00030136,2]
[399883407,1766805045229,-1298.76,0.00030136,2]
[399883408,1766805045239,-1298.76,0.00030136,2]
[399883409,1766805045249,-1298.76,0.00030136,2]
[399883410,1766805045259,-1298.76,0.00030136,2]
[399883411,1766805045269,-1298.76,0.00030136,2]
[399883412,1766805045279,-500.0,0.00030136,2]
[399883413,1766805045288,-500.0,0.00030136,2]
[399883414,1766805045298,-500.0,0.00030136,2]
[399883415,1766805045308,-500.0,0.00030136,2]
[399883416,1766805045318,-500.0,0.00030136,2]
[399883417,1766805045328,-500.0,0.00030136,2]
[399883418,1766805045338,-500.0,0.00030136,2]
[399883419,1766805045348,-500.0,0.00030136,2]
[399883420,1766805045359,-500.0,0.00030136,2]
[399883421,1766805045370,-500.0,0.00030136,2]
[399883422,1766805045381,-500.0,0.00030136,2]
[399883423,1766805045392,-500.0,0.00030136,2]
[399883424,1766805045402,-500.0,0.00030136,2]
[399883425,1766805045414,-500.0,0.00030136,2]
[399883426,1766805045687,-500.0,0.00030136,2]
[399883427,1766805045699,-1000.0,0.00030136,2]
[399883428,1766805045709,-1000.0,0.00030136,2]
[399883429,1766805045719,-1000.0,0.00030136,2]
[399883430,1766805045729,-511.00994093,0.00030136,2]
[399883431,1766805045739,-337.78,0.00030136,2]
[399883432,1766805045752,-337.78,0.00030136,2]
[399883434,1766805045762,-337.78,0.00030136,2]
[399883435,1766805045772,-337.78,0.00030136,2]
[399883437,1766805045782,-337.78,0.00030136,2]
[399883440,1766805045792,-337.78,0.00030136,2]
[399883442,1766805045802,-337.78,0.00030136,2]
[399883443,1766805045812,-337.78,0.00030136,2]
[399883444,1766805045822,-337.78,0.00030136,2]
[399883445,1766805045832,-337.78,0.00030136,2]
[399883446,1766805045842,-337.78,0.00030136,2]
[399883447,1766805045851,-337.78,0.00030136,2]
[399883448,1766805045862,-337.78,0.00030136,2]
[399883449,1766805045872,-337.78,0.00030136,2]
[399883450,1766805045882,-337.78,0.00030136,2]
[399883451,1766805045892,-500.0,0.00030136,2]
[399883452,1766805045902,-500.0,0.00030136,2]
[399883453,1766805045911,-500.0,0.00030136,2]
[399883454,1766805045920,-500.0,0.00030136,2]
[399883455,1766805045930,-500.0,0.00030136,2]
[399883456,1766805045944,-501.58419834,0.00030136,2]
[399883457,1766805045953,-500.0,0.00030136,2]
[399883458,1766805045964,-311.93233611,0.00030136,2]
[399883459,1766805045973,-362.53464253,0.00030136,2]
[399883460,1766805045983,-500.0,0.00030136,2]
[399883461,1766805045992,-500.0,0.00030136,2]